Cogmind - Beta 14 @@@ ROGUE MODE // 2024.11.08 @ 19:41:04 Player: Yallen Result: Destroyed by G-34 Mercenary with Small Laser Performance ------------- Evolutions (0) 0 Regions Visited (2) 400 Robots Destroyed (10) 50 Value Destroyed (243) 243 Prototype IDs (0) 0 Alien Tech Used (0) 0 Bonus (0) 0 TOTAL SCORE: 693 Bonus ------- None Cogmind --------- Core Integrity 0/250 Matter 256/300 Energy 98/100 System Corruption 1% Temperature Cool (7) Movement Treading (240) Ox1 Location -10/Mines Parts ------- > --- POWER (1) -------- (None) > --- PROPULSION (2) --- Light Treads > --- UTILITY (2) ------ Large Storage Unit Sensor Array > --- WEAPON (2) ------- (None) > --- INVENTORY (15) --- Aluminum Leg Aluminum Leg Aluminum Leg Heat Sink Improved Heat Sink Small Storage Unit Structural Scanner Signal Interpreter Improved Terrain Scanner Seismic Detector Tractor Beam Peak State ------------ > --- POWER ------------ Light Ion Engine > --- PROPULSION ------- Light Treads Light Treads > --- UTILITY ---------- Small Storage Unit Improved Terrain Scanner > --- WEAPON ----------- EM Pulse Gun Light Assault Rifle > --- INVENTORY -------- Light Ion Engine Light Nuclear Core Aluminum Leg Wheel Wheel Small Storage Unit Tractor Beam Small Laser [Rating: 10] Favorites ----------- Power Ion Engine Engine Ion Engine Propulsion Light Treads Treads Light Treads Wheel Wheel Utility Large Storage Unit Device Sensor Array Storage Large Storage Unit Weapon Light Assault Rifle Energy Gun EM Pulse Gun Ballistic Gun Light Assault Rifle Special Weapon Mining Laser Build | -11 -10 -10 ------- Run | Yrd Mat Min Slots Evolved . | . . . Power . | . . . Propulsion . | . . . Utility . | . . . Weapon . | . . . Parts Attached 23 | 8 11 4 Power 4 | 1 2 1 Engine 4 | 1 2 1 Core . | . . . Reactor . | . . . Propulsion 6 | 2 3 1 Treads 4 | 2 1 1 Leg . | . . . Wheel 2 | . 2 . Hover . | . . . Flight . | . . . Utility 4 | 2 2 . Device 2 | 1 1 . Storage 2 | 1 1 . Processor . | . . . Hackware . | . . . Protection . | . . . Artifact . | . . . Weapon 9 | 3 4 2 Energy Gun 7 | 2 4 1 Energy Cannon . | . . . Ballistic Gun 1 | 1 . . Ballistic Cannon . | . . . Launcher . | . . . Special Weapon 1 | . . 1 Impact Weapon . | . . . Slashing Weapon . | . . . Piercing Weapon . | . . . Special Melee Weapon . | . . . Unidentified Prototypes . | . . . Corrupted Parts 1 | . 1 . System Corruption 1 | . 1 . Parts Lost 7 | . . 7 Power 2 | . . 2 Propulsion 2 | . . 2 Utility . | . . . Weapon 3 | . . 3 Highest Loss Streak 4 | . . 4 To Critical Strikes . | . . . Average Slot Usage (%) 92 | . 100 79 Engine 12 | . 14 10 Treads 20 | . 27 8 Wheel 7 | . . 17 Device 14 | . 14 14 Storage 14 | . 14 14 Energy Gun 13 | . 15 10 Ballistic Gun 7 | . 12 . Special Weapon 1 | . . 3 Peak Build Rating 10 | 9 10 9 Average Rating 7 | 5 8 7 On Entrance 6 | . 9 9 Naked Turns . | . . . Heaviest Build 30 | 12 30 30 Greatest Support 40 | 40 40 20 Greatest Overweight (x) 2 | . 1 2 Average Overweight (x) . | . . 1 Largest Inventory Capacity 15 | 8 15 15 Average Capacity 11 | 7 11 15 Most Carried 15 | 8 15 12 Average Carried 8 | 4 8 10 Final Capacity 15 | 8 15 15 Final Carried 12 | 7 12 11 Class Distribution -------------------- 100% | Mutant Dominant Class ---------------- Mutant | -10/Materials Mutant | -10/Mines Resources | -11 -10 -10 ----------- Run | Yrd Mat Min Matter Collected 452 | 260 151 41 Remotely . | . . . Salvage Created 431 | 136 285 10 Parts 28 | 8 20 . Haulers Intercepted . | . . . Recyclers Shooed 1 | . 1 . Parts Field Recycled . | . . . Retrieved Matter . | . . . Parts Self-Destructed . | . . . Prevented . | . . . Kills | -11 -10 -10 ------- Run | Yrd Mat Min Combat Hostiles Destroyed 6 | . 5 1 Guns 6 | . 5 1 Classes Destroyed 6 | 2 3 1 Worker 1 | . 1 . Tunneler 2 | 2 . . Recycler 1 | 1 . . Watcher 1 | . 1 . Grunt 5 | . 5 . Assembled 1 | . . 1 Best Kill Streak 2 | 2 2 1 Combat Bots Only 2 | . 2 1 Max Kills in Single Turn 1 | 1 1 1 Gunslinging . | . . . Exploded . | . . . Melee . | . . . Uniques/NPCs Destroyed . | . . . Combat | -11 -10 -10 -------- Run | Yrd Mat Min Hostile Shots Fired 117 | . 51 66 Missed 26 | . 13 13 Damage Taken 1087 | . 461 626 Core 252 | . 106 146 Absorbed by Shields . | . . . Core Remaining (%) 100 | 100 . . Volleys Fired 73 | 6 39 28 Largest 2 | 2 2 2 Hottest 165 | 60 60 165 Shots Fired 128 | 12 78 38 Gun 116 | 12 78 26 Cannon . | . . . Launcher . | . . . Special 12 | . . 12 Kinetic 45 | 6 39 . Thermal 58 | . 20 38 Explosive . | . . . Electromagnetic 25 | 6 19 . Robot Hit Streak 7 | 3 7 5 Robot Miss Streak 7 | 2 4 7 Penetration Max . | . . . Secondary Targets . | . . . Shots Hit Robots 58 | 6 42 10 Core Hits 27 | 5 19 3 Critical Kills . | . . . Critical Parts Destroyed . | . . . Critical Strikes . | . . . Melee Attacks . | . . . Impact . | . . . Slashing . | . . . Piercing . | . . . Sneak Attacks . | . . . Combat Hostiles . | . . . Follow-up Attacks . | . . . Damage Inflicted 641 | 59 447 135 Guns 637 | 59 447 131 Cannons . | . . . Explosions . | . . . Melee . | . . . Ramming 4 | . . 4 Kinetic 207 | 34 173 . Thermal 250 | . 119 131 Explosive . | . . . Electromagnetic 180 | 25 155 . Impact . | . . . Slashing . | . . . Piercing . | . . . Highest Corruption 1 | . 1 1 Average Corruption 1 | . 1 1 Corruption Purged . | . . . Corruption Blocked . | . . . Effects 4 | . 3 1 Message Errors 1 | . 1 . Matter Fused 2 | . 2 . Energy Discharges 1 | . . 1 Overload Shots . | . . . Overflow Damage . | . . . Projectiles . | . . . Explosions . | . . . Melee . | . . . Knockbacks . | . . . Impact . | . . . Kinetic . | . . . Secondary . | . . . Self-Inflicted Damage . | . . . Shots . | . . . Rammed 2 | . . 2 Targets Rammed 2 | . . 2 Kicked . | . . . Crushed . | . . . Highest Temperature 469 | 40 210 469 Average Temperature 163 | 19 60 284 Received Heat Transfer 390 | . 300 90 Effects 9 | . . 9 Shutdowns 3 | . . 3 Energy Bleed 1 | . . 1 Interference 3 | . . 3 Matter Decay 1 | . . 1 Short Circuit 1 | . . 1 Siege Activations . | . . . Robots Corrupted . | . . . Combat Hostiles . | . . . Parts Fried . | . . . Impact Corruptions . | . . . Robots Melted . | . . . Combat Hostiles . | . . . Parts Melted . | . . . Heat Transferred 561 | . 275 286 Parts Sabotaged . | . . . Parts Stolen . | . . . Parts Stripped . | . . . Power Chain Reactions . | . . . Alert | -11 -10 -10 ------- Run | Yrd Mat Min Peak Influence 166 | 15 166 15 Initial 9 | . 9 7 Average 32 | 4 64 4 Maximum Alert Level . | . . . Low Security (%) 100 | 100 100 100 Level 1 . | . . . Level 2 . | . . . Level 3 . | . . . Level 4 . | . . . Level 5 . | . . . High Security . | . . . Max Security . | . . . Squads Dispatched 1 | . 1 . Investigation . | . . . Extermination . | . . . Reinforcement 1 | . 1 . Assault . | . . . Garrison . | . . . Intercept . | . . . Searches Triggered . | . . . Construction Impeded . | . . . Haulers Reinforced . | . . . Active Scanning Responses . | . . . Cargo Convoy Interrupts . | . . . Stealth | -11 -10 -10 --------- Run | Yrd Mat Min Distress Signals 4 | . 3 1 Communications Jammed . | . . . Distress Signals . | . . . Times Spotted 16 | . 12 4 Peak Tracking Total 3 | . 3 2 Tactical Retreats 2 | . 1 1 Traps | -11 -10 -10 ------- Run | Yrd Mat Min Traps Triggered . | . . . Indirectly . | . . . Trap Hack Attempts . | . . . Triggered . | . . . Disarmed . | . . . Reprogrammed . | . . . Reused . | . . . Traps Extracted . | . . . Installed . | . . . Triggered . | . . . Machines | -11 -10 -10 ---------- Run | Yrd Mat Min Machines Disabled 1 | . 1 . Max in Single Turn 1 | . 1 . Machines Repaired . | . . . Machines Dismantled . | . . . Machines Sabotaged . | . . . Overloaded Fab Kills . | . . . Hacking | -11 -10 -10 --------- Run | Yrd Mat Min Machines Accessed . | . . . Terminals . | . . . Fabricators . | . . . Repair Stations . | . . . Recycling Units . | . . . Scanalyzers . | . . . Garrison Access . | . . . Total Hacks . | . . . Successful . | . . . Failed . | . . . Catastrophic . | . . . Database Lockouts . | . . . Manual . | . . . Terminals . | . . . Fabricators . | . . . Repair Stations . | . . . Recycling Units . | . . . Scanalyzers . | . . . Garrison Access . | . . . Terminal Hacks . | . . . Fabricator Hacks . | . . . Repair Station Hacks . | . . . Recycling Unit Hacks . | . . . Scanalyzer . | . . . Garrison Access Hacks . | . . . Unauthorized Hacks . | . . . Terminals . | . . . Fabricators . | . . . Repair Stations . | . . . Recycling Units . | . . . Scanalyzers . | . . . Garrison Access . | . . . Data Cores Recovered . | . . . Used . | . . . Hacking Detections . | . . . Full Trace Events . | . . . Feedback Events . | . . . Feedback Blocked . | . . . Robot Schematics Acquired . | . . . Robots Built . | . . . Authchips . | . . . Time . | . . . Total Robot Build Rating . | . . . Part Schematics Acquired . | . . . Parts Built . | . . . Authchips . | . . . Time . | . . . Total Part Build Rating . | . . . Parts Repaired . | . . . Time . | . . . Parts Recycled . | . . . Recycled Matter . | . . . Retrieved Matter . | . . . Retrieved Components . | . . . Parts Scanalyzed . | . . . Part Schematics Acquired . | . . . Parts Damaged . | . . . Bothacking | -11 -10 -10 ------------ Run | Yrd Mat Min Used RIF Installer . | . . . Robots Hacked . | . . . Non-combat . | . . . Combat . | . . . Robot Hacks Applied . | . . . Relay Couplers Released . | . . . Fabnet Peak Effective % . | . . . Robots Rewired . | . . . Allies Hacked . | . . . Hacks Repelled . | . . . Allies | -11 -10 -10 -------- Run | Yrd Mat Min Total Allies . | . . . Largest Group . | . . . Highest-Rated Group . | . . . Highest-Rated Ally . | . . . Total Orders . | . . . Ally Attacks . | . . . Total Damage . | . . . Kills . | . . . Allies Corrupted . | . . . Allies Melted . | . . . Intel | -11 -10 -10 ------- Run | Yrd Mat Min Robot Analysis Total . | . . . Derelict Logs Recovered . | . . . Drone Launches . | . . . Drone Recoveries . | . . . Exploration | -11 -10 -10 ------------- Run | Yrd Mat Min Turns Passed 1034 | 247 474 313 Spaces Moved 459 | 139 206 114 Core 11 | 11 . . Treads 403 | 128 203 72 Legs . | . . . Wheels 45 | . 3 42 Hover . | . . . Flight . | . . . Fastest Speed 50 | 50 95 95 Average Speed 163 | 151 159 187 Slowest Speed 240 | 160 160 240 Overloaded Moves . | . . . Propulsion Burnouts . | . . . Robots Hopped . | . . . Cave-ins Triggered . | . . . Exploration Rate (%) 18 | 7 34 15 Regions Visited 2 Branch Regions 1 Pre-discovered Areas . | . . . Known Exits Taken . | . . . Unknown Exits Taken 2 | 1 1 . Scrap Searched . | . . . Spaces Dug . | . . . Terrain Destroyed 3 | . . 3 Melee . | . . . Projectile 3 | . . 3 AOE . | . . . Terrain Rammed . | . . . Walls Destroyed . | . . . Machines Disabled . | . . . Actions | -11 -10 -10 --------- Run | Yrd Mat Min Total 596 | 163 283 150 Wait . | . . . Move 457 | 138 205 114 Hop . | . . . Pick Up 27 | 9 16 2 Fast Attach 9 | 6 3 . Attach 5 | 2 . 3 Detach 1 | 1 . . Swap 9 | . 8 1 Drop 13 | 1 12 . Fire 73 | 6 39 28 Melee . | . . . Ram . | . . . Kick . | . . . Crush 2 | . . 2 Escape Stasis . | . . . Rewire . | . . . Trap . | . . . Miscellaneous . | . . . Route ------- -11/Scrapyard -10/Materials -10/Mines History --------- Turn | Location | Event 8 | -11/Scrapyard | Discovered new exit (range 16) 248 | -11/Scrapyard | Entered Materials 315 | -10/Materials | Build established: Mutant 488 | -10/Materials | Discovered new exit (range 15) 722 | -10/Materials | Entered Mines 754 | -10/Mines | Excavation squad dispatched 754 | -10/Mines | A large section of the Mines collapsed 841 | -10/Mines | Core integrity fell below 50% 875 | -10/Mines | Lost 4 parts (1p1n2w) 973 | -10/Mines | Core integrity fell below 20% 1004 | -10/Mines | Excavation squad dispatched 1035 | -10/Mines | Destroyed by G-34 Mercenary with Small Laser Last Messages --------------- 00908_ R-06 Scavenger collects Wheel. 00910_ T-07 Excavator is excavating. 00911_ Slammed into U-05 Engineer. 00912_ Acquired 22 matter. 00912_ U-05 Engineer sends out distress signal. 00913_ T-07 Excavator is excavating. 00917_ Sml. Laser destroyed. 00918_ T-07 Excavator is excavating. 00932_ as-53372 destroyed. 00952_ Acquired 9 matter. 00960_ T-07 Excavator is excavating. 00967_ Acquired Seismic Detector. 00969_ T-07 Excavator is excavating. 00974_ Ion Engine destroyed. 00977_ T-07 Excavator is excavating. 00993_ Wheel destroyed. 01004_ ALERT: Derelict activity in mines confirmed. Dispatching additional escorted excavation squad. 01010_ T-07 Excavator is excavating. Map ----- +----------------------------------------------------+ | ?????????????????????????????????????????? | | ?????????????????????????????????????????? | | ?????????????????????????????????????????? | | ?????????????????????????????????????????? | | ?????????????????????????????????????????? | | ?????????????????????????????????????????? | | ?????????????????????????????????????????? | | ?????????????????????????????????????????? | | ?????????????????????????????????????????? | | ?????????????????????????????????????????? | | ?????????????????????????????????????????? | | ?????????????????????????????????????????? | | ?????????????????????????????????????????? | | ?????????????????????????????????????????? | | ?????????????????????????????????????????? | | ?????????????????????#???????????????????? | | ??????????????????#?## ??????????????????? | | ?????????????????? ## ??????????????????? | | ?????????????????? ??????????????????? | | ??????????????? ? #?????????????????? | | ???????????? #????????????????? | | ??????????? """ ##??????????????? | | ??????????? """ ####???????????? | | ?????????? """ #???????????? | | ??????????# ?????????????? | | ???????????# @#??????????????? | | ?????????????????### ## #??????????????? | | ???????????????????????# #??????###?????? | | ???????????????????????# #????## ##????? | | ???????????????????????# ##??## #????? | | ???????????????????????# #### #????? | | ??????????????????????## #????? | | ?????????????????????## ##????? | | ????????????????????## ##?????? | | ????????????????????# ## ##??????? | | ????????????????????# #######???????? | | ???????????????????## g #?????????????? | | ??????????????????## g ##?????????????? | | ??????????????????# ##??????????????? | | ??????????????????# #r#???????????????? | | ??????????????????## ## #???????????????? | | ???????????????????###?# #???????????????? | | ???????????????????????# #???????????????? | | ???????????????????????# #??#####????????? | | ???????????????????????#"#?## ##???????? | | ???????????????????????# #### "#???????? | | ???????????????????##### ## %= #???????? | | ???????????????????##" " ""##???????? | | ???????????????????# ### ##"# #????????? | | ???????????????????## ###"## #????????? | +----------------------------------------------------+ Best States ------------- Heat Dissipation 25 Energy Generation 10 Energy Capacity 250 Matter Stores 300 Matter Capacity 300 Sight Range 16 Robot Scan Range 14 Terrain Scan Range 16 Terrain Scan Density 10 Evasion (%) 41 Recoil Reduction 2 Item Schematics ----------------- None Robot Schematics ------------------ None Fabricated ------------ Nothing Alien Tech Used ----------------- None Achievements -------------- None Challenges ------------ None Game ------ Seed RingTeleporterArray Manual? 0 Play Time 00:17:02 Cumulative 20.8 hours Start 2024.11.08 @ 19:25:00 End 2024.11.08 @ 19:41:04 Sessions 1 Manual Loads 0 Difficulty Rogue Special Mode None Game No. 18 Rogue 17 Adventurer 1 Explorer 0 Win Type - Total 1 Types 1/0/0/0/0/0/0/0/0 Lore% 6 Gallery% 23 Achievement% 23 Wizard Run 0 Options --------- Layout 1 ASCII 0 Keyboard 1 Movement Arrows Keybinds 0 Fullscreen 1 Font 24/Smallcaps Map View 50x35 Zoom Use 0% Tactical HUD 1 Map Filters NONE Filters NONE Steam 1 RUN: d8324fdd-ee5b-46d8-be46-8aaedbc324a3